Cogmind - Beta 17 @@@ ROGUE MODE // 2026.07.16 @ 11:49:35 Player: osman sinnoks Result: Destroyed by D-53 Grenadier with Mini Grenade Launcher Performance ------------- Evolutions (0) 0 Regions Visited (2) 400 Robots Destroyed (26) 130 Value Destroyed (463) 463 Prototype IDs (3) 60 Alien Tech Used (0) 0 Bonus (0) 0 TOTAL SCORE: 1053 Bonus ------- None Cogmind --------- Core Integrity 0/250 Matter 196/300 Energy 98/100 System Corruption 0% Temperature Cool (1) Movement Core (700) Ox13 Location -10/Mines Parts ------- > --- POWER (1) -------- (None) > --- PROPULSION (2) --- (None) > --- UTILITY (2) ------ High-capacity Storage Unit Hacking Suite > --- WEAPON (2) ------- Light Assault Rifle > --- INVENTORY (20) --- Light Ion Engine Light Nuclear Core Light Treads Light Treads Light Treads Light Treads High-capacity Matter Pod (200) Targeting Computer Light Armor Plating EM Pulse Gun Small Laser Beam Cannon Datajack Peak State ------------ > --- POWER ------------ Ion Engine > --- PROPULSION ------- Light Treads Light Treads > --- UTILITY ---------- High-capacity Storage Unit Hacking Suite > --- WEAPON ----------- EM Pulse Gun Light Assault Rifle > --- INVENTORY -------- Light Ion Engine Light Nuclear Core Light Treads Light Treads Light Treads High-capacity Matter Pod Small Laser Beam Cannon [Rating: 10] Favorites ----------- Power Ion Engine Engine Ion Engine Propulsion Light Treads Treads Light Treads Utility High-capacity Storage Unit Storage High-capacity Storage Unit Hackware Hacking Suite Weapon Light Assault Rifle Energy Gun EM Pulse Gun Ballistic Gun Light Assault Rifle Launcher Grenade Launcher Build | -11 -10 -10 ------- Run | Yrd Mat Min Slots Evolved . | . . . Power . | . . . Propulsion . | . . . Utility . | . . . Weapon . | . . . Parts Attached 13 | 6 6 1 Power 3 | 1 2 . Engine 3 | 1 2 . Core . | . . . Reactor . | . . . Propulsion 2 | 2 . . Treads 2 | 2 . . Leg . | . . . Wheel . | . . . Hover . | . . . Flight . | . . . Utility 5 | 1 4 . Device . | . . . Storage 4 | 1 3 . Processor . | . . . Hackware 1 | . 1 . Protection . | . . . Artifact . | . . . Weapon 3 | 2 . 1 Energy Gun 1 | 1 . . Energy Cannon . | . . . Ballistic Gun 1 | 1 . . Ballistic Cannon . | . . . Launcher 1 | . . 1 Special Weapon . | . . . Impact Weapon . | . . . Slashing Weapon . | . . . Piercing Weapon . | . . . Special Melee Weapon . | . . . Unidentified Prototypes . | . . . Parts Lost 5 | . 1 4 Power 2 | . 1 1 Propulsion 2 | . . 2 Utility . | . . . Weapon 1 | . . 1 Highest Loss Streak 4 | . 1 4 To Critical Strikes . | . . . Average Backups 7 | 1 7 13 Power 1 | . 1 2 Propulsion 2 | . 2 4 Utility 1 | . 1 3 Weapon 1 | . 1 3 Tool/Special . | . . . Unused Backups 11 | . . 11 Power 1 | . . 1 Propulsion 4 | . . 4 Utility 3 | . . 3 Weapon 2 | . . 2 Tool/Special 1 | . . 1 Average Slot Usage (%) 93 | . 92 100 Engine 13 | . 13 14 Treads 27 | . 27 28 Storage 14 | . 14 14 Hackware 8 | . 7 14 Energy Gun 13 | . 14 7 Ballistic Gun 14 | . 14 14 Peak Build Rating 10 | 6 10 10 Average Rating 8 | 4 8 9 On Entrance 5 | . 6 10 Avg Prop Armor Cover (%) . | . . . Naked Turns . | . . . Heaviest Build 49 | 11 48 49 Greatest Support 40 | 40 40 40 Greatest Overweight (x) 2 | . 1 2 Average Overweight (x) . | . . 1 Largest Inventory Capacity 25 | 8 25 20 Average Capacity 17 | 7 17 20 Most Carried 13 | 2 13 13 Average Carried 7 | 1 8 13 Final Capacity 20 | 8 20 20 Final Carried 13 | 2 13 13 Class Distribution -------------------- 100% | Mutant Dominant Class ---------------- Mutant | -10/Materials Mutant | -10/Mines Resources | -11 -10 -10 ----------- Run | Yrd Mat Min Matter Collected 607 | 271 326 10 Remotely . | . . . Salvage Created 884 | 137 710 37 Parts 64 | 8 56 . Haulers Intercepted 2 | . 2 . Recyclers Shooed . | . . . Parts Field Recycled . | . . . Retrieved Matter . | . . . Parts Self-Destructed . | . . . Prevented . | . . . Parts Restored . | . . . Kills | -11 -10 -10 ------- Run | Yrd Mat Min Combat Hostiles Destroyed 28 | . 12 16 Guns 13 | . 12 1 AOE 15 | . . 15 Classes Destroyed 9 | 2 6 1 Builder 1 | . 1 . Tunneler 4 | 4 . . Hauler 2 | . 2 . Recycler 2 | 1 1 . Operator 2 | . 2 . Watcher 3 | . 3 . Swarmer 5 | . 5 . Grunt 7 | . 7 . Assembled 16 | . . 16 Best Kill Streak 16 | 5 3 16 Combat Bots Only 16 | . 3 16 Max Kills in Single Turn 4 | 1 2 4 Gunslinging . | . . . Exploded 4 | . . 4 Melee . | . . . Uniques/NPCs Destroyed . | . . . Combat | -11 -10 -10 -------- Run | Yrd Mat Min Hostile Shots Fired 78 | . 40 38 Missed 24 | . 13 11 Hits 54 | . 27 27 Melee 2 | . . 2 Projectile 52 | . 27 25 AOE 7 | . . 7 Damage Taken 1004 | 40 308 656 Core 257 | . 62 195 Absorbed by Shields . | . . . Regen/Repaired (Parts) 123 | . 123 . Core Remaining (%) 100 | 100 . . Volleys Fired 69 | 11 44 14 Largest 2 | 2 2 2 Hottest 60 | 60 60 50 Shots Fired 126 | 22 88 16 Gun 114 | 22 88 4 Cannon . | . . . Launcher 12 | . . 12 Special . | . . . Kinetic 59 | 11 44 4 Thermal . | . . . Explosive 12 | . . 12 Electromagnetic 55 | 11 44 . Robot Hit Streak 12 | 7 10 12 Robot Miss Streak 5 | 2 5 2 Penetration Max . | . . . Secondary Targets 1 | . 1 . Max Gunslinging Chain 1 | . 1 . Shots Hit Robots 66 | 14 48 4 Core Hits 68 | 6 32 30 Critical Kills . | . . . Critical Parts Destroyed . | . . . Critical Strikes 1 | . 1 . Corrupt 1 | . 1 . Melee Attacks . | . . . Impact . | . . . Slashing . | . . . Piercing . | . . . Sneak Attacks . | . . . Combat Hostiles . | . . . Follow-up Attacks . | . . . Damage Inflicted 1845 | 217 643 985 Guns 805 | 148 631 26 Cannons . | . . . Explosions 1028 | 69 . 959 Melee . | . . . Ramming 12 | . 12 . Kinetic 223 | 21 176 26 Thermal 69 | 69 . . Explosive 959 | . . 959 Electromagnetic 582 | 127 455 . Impact . | . . . Slashing . | . . . Piercing . | . . . Highest Corruption . | . . . Average Corruption . | . . . Corruption Purged . | . . . Corruption Blocked . | . . . Overload Shots . | . . . Overflow Damage 35 | 8 . 27 Projectiles . | . . . Explosions 35 | 8 . 27 Melee . | . . . Knockbacks . | . . . Impact . | . . . Kinetic . | . . . Secondary . | . . . Self-Inflicted Damage 66 | 40 . 26 Shots 2 | 1 . 1 Rammed 3 | . 3 . Targets Rammed 3 | . 3 . Kicked . | . . . Crushed . | . . . Highest Temperature 76 | 52 76 10 Average Temperature 25 | 28 26 7 Received Heat Transfer 132 | . 132 . Siege Activations . | . . . Martial Activations . | . . . Shielding Activations . | . . . Robots Disrupted . | . . . Combat Hostiles . | . . . Robots Corrupted . | . . . Combat Hostiles . | . . . Parts Fried . | . . . Impact Corruptions . | . . . Robots Melted . | . . . Combat Hostiles . | . . . Parts Melted . | . . . Heat Transferred 100 | 100 . . Parts Sabotaged . | . . . Parts Stolen . | . . . Parts Stripped . | . . . Power Chain Reactions 1 | 1 . . Alert | -11 -10 -10 ------- Run | Yrd Mat Min Maximum Alert Level . | . . . Low Security (%) 100 | 100 100 100 Level 1 . | . . . Level 2 . | . . . Level 3 . | . . . Level 4 . | . . . Level 5 . | . . . High Security . | . . . Max Security . | . . . Peak Influence 123 | 15 123 24 Initial 6 | . . 6 Average 30 | 2 34 7 Influence Increases 490 | 25 434 31 Destroy 0b10 Robot/C 240 | . 240 . Destroy 0b10 Robot/NC 70 | 25 45 . Destroy Leader 70 | . 70 . Successful Hack 19 | . 19 . Disable Machine 30 | . 30 . Destroy Structure 31 | . . 31 Lose Combat Pursuer 30 | . 30 . Influence Decreases 490 | 25 418 47 Entered New Map 10 | . . 10 Time Decay 469 | 25 408 36 Lost Part 11 | . 10 1 Squads Dispatched 3 | . 3 . Investigation 1 | . 1 . Extermination . | . . . Reinforcement 2 | . 2 . Assault . | . . . Garrison . | . . . Intercept . | . . . Searches Triggered . | . . . Construction Impeded . | . . . Haulers Reinforced . | . . . Active Scanning Responses . | . . . Cargo Convoy Interrupts . | . . . Stealth | -11 -10 -10 --------- Run | Yrd Mat Min Distress Signals 1 | . 1 . Communications Jammed . | . . . Distress Signals . | . . . Times Spotted 42 | . 24 18 Peak Tracking Total 16 | . 5 16 Tactical Retreats 2 | . 2 . Traps | -11 -10 -10 ------- Run | Yrd Mat Min Traps Triggered 1 | . 1 . Indirectly . | . . . Trap Hack Attempts . | . . . Triggered . | . . . Disarmed . | . . . Reprogrammed . | . . . Reused . | . . . Traps Extracted . | . . . Installed . | . . . Triggered . | . . . Machines | -11 -10 -10 ---------- Run | Yrd Mat Min Machines Disabled 2 | . 2 . Max in Single Turn 1 | . 1 . Machines Repaired . | . . . Machines Dismantled . | . . . Machines Sabotaged . | . . . Overloaded Fab Kills . | . . . Hacking | -11 -10 -10 --------- Run | Yrd Mat Min Machines Accessed 5 | . 5 . Terminals 4 | . 4 . Fabricators . | . . . Repair Stations 1 | . 1 . Recycling Units . | . . . Scanalyzers . | . . . Garrison Access . | . . . Total Hacks 22 | . 22 . Successful 13 | . 13 . Failed 8 | . 8 . Catastrophic 3 | . 3 . Database Lockouts 1 | . 1 . Manual 8 | . 8 . Terminals 17 | . 17 . Fabricators . | . . . Repair Stations 5 | . 5 . Recycling Units . | . . . Scanalyzers . | . . . Garrison Access . | . . . Terminal Hacks 8 | . 8 . Robot Analysis 1 | . 1 . Prototype ID Bank 2 | . 2 . Branch Access Points 1 | . 1 . Alert Level 1 | . 1 . Hauler Manifests 1 | . 1 . Registered Components 1 | . 1 . Zone Layout 1 | . 1 . Fabricator Hacks . | . . . Repair Station Hacks 4 | . 4 . Scan Component 2 | . 2 . Repair 2 | . 2 . Recycling Unit Hacks . | . . . Scanalyzer . | . . . Garrison Access Hacks . | . . . Unauthorized Hacks 1 | . 1 . Terminals 1 | . 1 . Botnet 1 | . 1 . Fabricators . | . . . Repair Stations . | . . . Recycling Units . | . . . Scanalyzers . | . . . Garrison Access . | . . . Data Cores Recovered 1 | . 1 . Used . | . . . Hacking Detections 5 | . 5 . Full Trace Events . | . . . Feedback Events . | . . . Feedback Blocked . | . . . Robot Schematics Acquired . | . . . Robots Built . | . . . Authchips . | . . . Time . | . . . Total Robot Build Rating . | . . . Part Schematics Acquired . | . . . Parts Built . | . . . Authchips . | . . . Time . | . . . Total Part Build Rating . | . . . Part Studies Acquired . | . . . Parts Repaired 2 | . 2 . Time 52 | . 52 . Parts Recycled . | . . . Recycled Matter . | . . . Retrieved Matter . | . . . Retrieved Components . | . . . Parts Scanalyzed . | . . . Part Schematics Acquired . | . . . Parts Damaged . | . . . Bothacking | -11 -10 -10 ------------ Run | Yrd Mat Min Used RIF Installer . | . . . Robots Hacked . | . . . Non-combat . | . . . Combat . | . . . Robot Hacks Applied . | . . . Relay Couplers Released . | . . . Fabnet Peak Effective % . | . . . Robots Rewired . | . . . Allies Hacked . | . . . Hacks Repelled . | . . . Allies | -11 -10 -10 -------- Run | Yrd Mat Min Total Allies . | . . . Largest Group . | . . . Highest-Rated Group . | . . . Highest-Rated Ally . | . . . Total Orders . | . . . Ally Attacks . | . . . Total Damage . | . . . Kills . | . . . Allies Corrupted . | . . . Allies Melted . | . . . Intel | -11 -10 -10 ------- Run | Yrd Mat Min Active Infowar (turns) . | . . . Robot Analysis Total 1 | . 1 . Derelict Logs Recovered 1 | . . 1 Drone Launches . | . . . Drone Recoveries . | . . . Exploration | -11 -10 -10 ------------- Run | Yrd Mat Min Turns Passed 1955 | 120 1710 125 Spaces Moved 806 | 58 708 40 Core 15 | 15 . . Treads 791 | 43 708 40 Legs . | . . . Wheels . | . . . Hover . | . . . Flight . | . . . Fastest Speed 50 | 50 160 240 Average Speed 204 | 131 208 242 Slowest Speed 320 | 160 240 320 Overloaded Moves . | . . . Propulsion Burnouts . | . . . Robots Hopped . | . . . Potential Cave-ins . | . . . Cave-ins Triggered . | . . . Exploration Rate (%) 39 | 3 96 18 Regions Visited 2 Branch Regions 1 Pre-discovered Areas . | . . . Known Exits Taken 1 | . 1 . Unknown Exits Taken 1 | 1 . . Scrap Searched . | . . . Spaces Dug . | . . . Terrain Destroyed 80 | 5 . 75 Melee . | . . . Projectile . | . . . AOE 80 | 5 . 75 Terrain Rammed . | . . . Walls Destroyed . | . . . Machines Disabled . | . . . Actions | -11 -10 -10 --------- Run | Yrd Mat Min Total 997 | 82 860 55 Wait 76 | . 76 . Move 804 | 57 707 40 Hop . | . . . Pick Up 26 | 8 18 . Fast Attach . | . . . Attach 10 | 6 4 . Detach . | . . . Swap 6 | . 5 1 Drop 3 | . 3 . Fire 69 | 11 44 14 Melee . | . . . Ram . | . . . Kick . | . . . Crush 3 | . 3 . Escape Stasis . | . . . Rewire . | . . . Trap . | . . . Miscellaneous . | . . . Route ------- -11/Scrapyard -10/Materials (discovered 6 exits: [*Mat x3] / *Min x2 / [*Sub]) -10/Mines History --------- Turn | Location | Event 6 | -11/Scrapyard | Discovered new exit (range 16) 121 | -11/Scrapyard | Entered Materials 311 | -10/Materials | Identified exit to Mines 317 | -10/Materials | Build established: Mutant 371 | -10/Materials | Central database locked down 577 | -10/Materials | Discovered new exit (range 16) 805 | -10/Materials | Discovered new exit (range 16) 882 | -10/Materials | Repaired Lgt. Treads 910 | -10/Materials | Repaired Lgt. Treads 1505 | -10/Materials | Discovered new exit (range 14) 1660 | -10/Materials | Discovered new exit (range 7) 1831 | -10/Materials | Entered Mines 1846 | -10/Mines | Learned 2 Materials zone layouts 1885 | -10/Mines | Assembled infested the area 1902 | -10/Mines | Core integrity fell below 50% 1946 | -10/Mines | Destroyed 16 combat bots 1953 | -10/Mines | Core integrity fell below 20% 1956 | -10/Mines | Destroyed by D-53 Grenadier with Mini Grenade Launcher Last Messages --------------- 01907_ as-61852 destroyed. 01907_ as-65766 destroyed. 01909_ as-32041 destroyed. 01909_ as-82039 destroyed. 01910_ The unstable cave ceiling collapses. 01911_ Acquired 10 matter. 01912_ The unstable cave ceiling collapses. 01915_ as-10073 destroyed. 01915_ Destroyed Asb. Hover Unit. 01917_ as-70683 destroyed. 01923_ The unstable cave ceiling collapses. 01925_ as-14206 destroyed. [Achievement: Exterminator] 01925_ Destroyed Asb. Hover Unit. 01925_ as-74625 destroyed. 01926_ The unstable cave ceiling collapses. 01952_ Grenade Launcher destroyed. 01954_ Ion Engine destroyed. 01955_ The unstable cave ceiling collapses. 01955_ Lgt. Treads destroyed. Map ----- +----------------------------------------------------+ | ??????????????????????????????????????????????? | | ??????????????????????????????????????????????? | | ??????????????????????????????????????????????? | | ??????????????????????????????????????????????? | | ??????????????????????????????????????????????? | | ??????????????????????????????????????????????? | | ??????????????????????????????????????????????? | | ??????????????????????????????????????????????? | | ??????????????????????????????????????????????? | | ??????????????????????????????????????????????? | | ??????????????????????????????????????????????? | | ??????????????????????????????????????????????? | | ??????????????????????????????????????????????? | | ??????????????????????????????????????????????? | | ??????????????????????????????????????????????? | | ???????????????????????????????????? ?????????? | | ??????????????????????????????????? ????????? | | ?????????????????????????????????? ????????? | | ????????????????????????????????? ???????? | | ??????????????????????????????## ???????? | | ???????????????????????###??? ???????? | | ???????????????????????# ?? #??????? | | ???????????######???#### ### #??????? | | ???????????? ### # #?????? | | ????????????????# #?????? | | ??????????????????# @ #?????? | | ??????????????????# ?????? | | ??????????????????# ## ?????? | | ??????????????????## ##?????? ??????? | | ???????????????????# ###???????????????? | | ??????????????????# d ###?????????????????? | | ???????? ####### d ###??????????????????? | | ???????? ##????????????????????? | | ???????? #?????????????????????? | | ???????? ########## ##?????????########???? | | ????????? ## #########?# #???? | | ?????????????# ### !! #???? | | ?????????????# # ## !! #???? | | ?????????????# ### ## ! #???? | | ?????????????# # ##?# ## !! #???? | | ?????????????# #?## # #???? | | ???????????? ####### #####???? | | ??????????? " # ?????# #???????? | | ???????????# ?????# ##???????? | | ???????????## ?????## #????????? | | ????????????##### # # #??????## #???????? | | ????????????????## ###????????# #???????? | | ?????????????????##???????????# ##???????? | | ??????????????????????????????## ####????????? | | ???????????????????????????????###????????????? | +----------------------------------------------------+ Best States ------------- Heat Dissipation 25 Energy Generation 10 Energy Capacity 250 Matter Stores 300 Matter Capacity 300 Sight Range 16 Terrain Scan Density 10 Evasion (%) 50 Recoil Reduction 2 Offensive Hacking 10 Item Schematics ----------------- None Robot Schematics ------------------ None Fabricated ------------ Nothing Repaired ---------- Lgt. Treads | 49% | -10/Materials Lgt. Treads | 62% | -10/Materials Studied --------- None Alien Tech Used ----------------- None Achievements -------------- Exterminator Challenges ------------ None Game ------ Seed InsulatedStrikeDrivehammer Manual? 0 Play Time 00:15:32 Cumulative 57.0 hours Start 2026.07.15 @ 19:04:38 End 2026.07.16 @ 11:49:35 Sessions 2 Manual Loads 0 Difficulty Rogue Special Mode None Game No. 107 Rogue 107 Adventurer 0 Explorer 0 Win Type - Total 0 Types 0/0/0/0/0/0/0/0/0/0 Lore% 29 Gallery% 35 Achievement% 30 Wizard Run 0 Options --------- Layout 2 ASCII 0 Keyboard 0 Movement Mouse Keybinds 0 Fullscreen 1 Font 48/Smallcaps Map View 50x44 Zoom Use 0% Tactical HUD 1 Map Filters NONE Filters NONE Steam 1 RUN: d74839bb-3d9d-4f98-88e3-c70072945ec0